[Event "Early-Titled-Tuesday-Blitz-November-28-2023"]
[Site "Chess.com"]
[Date "2023.11.28"]
[Round "3"]
[White "jeetjain"]
[Black "Gabrielian_Artur"]
[Result "1-0"]
[WhiteElo "2546"]
[BlackElo "2724"]
[TimeControl "180+1"]
[EndTime "8:30:13 PST"]
[Termination "jeetjain won by resignation"]

1. d4 {[%clk 0:03:00.9]} 1... Nf6 {[%clk 0:02:59.6]} 2. Nf3 {[%clk 0:03:01]}
2... g6 {[%clk 0:02:59.5]} 3. Nbd2 {[%clk 0:02:58.2]} 3... Bg7 {[%clk
0:02:57.9]} 4. e4 {[%clk 0:02:56.9]} 4... d6 {[%clk 0:02:58.1]} 5. h3 {[%clk
0:02:55.3]} 5... O-O {[%clk 0:02:57.9]} 6. c3 {[%clk 0:02:55.9]} 6... c5 {[%clk
0:02:57.6]} 7. Bd3 {[%clk 0:02:55]} 7... cxd4 {[%clk 0:02:57.5]} 8. cxd4 {[%clk
0:02:55.3]} 8... Nc6 {[%clk 0:02:57.9]} 9. a3 {[%clk 0:02:55.4]} 9... Nd7 {[%clk
0:02:54.2]} 10. d5 {[%clk 0:02:44.1]} 10... Nce5 {[%clk 0:02:52]} 11. Be2 {[%clk
0:02:40.3]} 11... Nxf3+ {[%clk 0:02:40.3]} 12. Nxf3 {[%clk 0:02:40.1]} 12... Nc5
{[%clk 0:02:40.3]} 13. Nd2 {[%clk 0:02:23.1]} 13... f5 {[%clk 0:02:34.8]} 14.
exf5 {[%clk 0:02:13.8]} 14... Bxf5 {[%clk 0:02:34.4]} 15. O-O {[%clk 0:02:12.7]}
15... Rc8 {[%clk 0:02:34.1]} 16. Nf3 {[%clk 0:02:06.8]} 16... Qb6 {[%clk
0:02:33.7]} 17. Ra2 {[%clk 0:01:53.8]} 17... Qb3 {[%clk 0:02:28.2]} 18. Qxb3
{[%clk 0:01:32.5]} 18... Nxb3 {[%clk 0:02:28.1]} 19. Be3 {[%clk 0:01:31]} 19...
a6 {[%clk 0:02:20.4]} 20. a4 {[%clk 0:01:30.4]} 20... Be4 {[%clk 0:02:01.4]} 21.
Ra3 {[%clk 0:01:27]} 21... Bxd5 {[%clk 0:02:00.2]} 22. Rd1 {[%clk 0:01:21.5]}
22... Bf7 {[%clk 0:01:51.6]} 23. Ng5 {[%clk 0:01:20.7]} 23... Bxb2 {[%clk
0:01:49.8]} 24. Ra2 {[%clk 0:01:20.5]} 24... Bf6 {[%clk 0:01:45.5]} 25. Nxf7
{[%clk 0:01:19.8]} 25... Kxf7 {[%clk 0:01:46.4]} 26. Rb1 {[%clk 0:01:12.7]}
26... Nc5 {[%clk 0:01:43.1]} 27. Bxc5 {[%clk 0:01:06]} 27... Rxc5 {[%clk
0:01:42.4]} 28. Rxb7 {[%clk 0:01:05.8]} 28... a5 {[%clk 0:01:42.5]} 29. g3
{[%clk 0:01:01.2]} 29... h5 {[%clk 0:01:41.2]} 30. Bb5 {[%clk 0:00:58.7]} 30...
Rfc8 {[%clk 0:01:39.1]} 31. Ra7 {[%clk 0:00:54.5]} 31... Bd4 {[%clk 0:01:34.8]}
32. Rxa5 {[%clk 0:00:35.5]} 32... Rc2 {[%clk 0:01:33.6]} 33. Rxc2 {[%clk
0:00:33.9]} 33... Rxc2 {[%clk 0:01:34.5]} 34. Ra6 {[%clk 0:00:24.9]} 34... Bxf2+
{[%clk 0:01:28.3]} 35. Kg2 {[%clk 0:00:24.6]} 35... Bc5+ {[%clk 0:01:24.4]} 36.
Kf1 {[%clk 0:00:17.6]} 36... Kf6 {[%clk 0:01:19.9]} 37. Ra8 {[%clk 0:00:15.6]}
37... Rb2 {[%clk 0:01:15.5]} 38. Rf8+ {[%clk 0:00:14.8]} 38... Ke5 {[%clk
0:01:15.1]} 39. g4 {[%clk 0:00:14.8]} 39... h4 {[%clk 0:01:13.9]} 40. Rg8 {[%clk
0:00:14.5]} 40... Kf4 {[%clk 0:01:10.5]} 41. Rxg6 {[%clk 0:00:12.5]} 41... e5
{[%clk 0:01:10.4]} 42. Rf6+ {[%clk 0:00:11.9]} 42... Kg3 {[%clk 0:01:07.4]} 43.
g5 {[%clk 0:00:12]} 43... Kh2 {[%clk 0:00:35.6]} 44. g6 {[%clk 0:00:11.6]} 44...
Rg2 {[%clk 0:00:35.7]} 45. Bd7 {[%clk 0:00:09.6]} 45... Rg5 {[%clk 0:00:29]} 46.
a5 {[%clk 0:00:09.3]} 46... e4 {[%clk 0:00:29]} 47. a6 {[%clk 0:00:09.3]} 47...
e3 {[%clk 0:00:27]} 48. Bg4 {[%clk 0:00:07.5]} 48... Kg3 {[%clk 0:00:18.6]} 49.
Rxd6 {[%clk 0:00:07.3]} 49... Bxd6 {[%clk 0:00:17.4]} 50. a7 {[%clk 0:00:07.4]}
50... Ra5 {[%clk 0:00:16.3]} 51. g7 {[%clk 0:00:07.9]} 51... Ra2 {[%clk
0:00:12.6]} 52. g8=Q {[%clk 0:00:06.4]} 52... Rf2+ {[%clk 0:00:11.8]} 53. Ke1
{[%clk 0:00:06.6]} 53... Bb4+ {[%clk 0:00:11.3]} 54. Kd1 {[%clk 0:00:07.3]}
54... Rd2+ {[%clk 0:00:10.3]} 55. Kc1 {[%clk 0:00:06.7]} 55... Ba3+ {[%clk
0:00:10.5]} 56. Kb1 {[%clk 0:00:06.2]} 1-0

[Event "Early-Titled-Tuesday-Blitz-November-28-2023"]
[Site "Chess.com"]
[Date "2023.11.28"]
[Round "3"]
[White "GaiozNigalidze"]
[Black "vovachesss"]
[Result "1-0"]
[WhiteElo "2675"]
[BlackElo "2854"]
[TimeControl "180+1"]
[EndTime "8:30:14 PST"]
[Termination "GaiozNigalidze won on time"]

1. d4 {[%clk 0:03:00.9]} 1... d5 {[%clk 0:02:58.9]} 2. c4 {[%clk 0:03:01]} 2...
c6 {[%clk 0:02:59.5]} 3. cxd5 {[%clk 0:03:01.1]} 3... cxd5 {[%clk 0:02:59.6]} 4.
Nc3 {[%clk 0:03:01.4]} 4... Nf6 {[%clk 0:02:58.7]} 5. Bf4 {[%clk 0:03:00.9]}
5... Nc6 {[%clk 0:02:57.4]} 6. e3 {[%clk 0:03:00.7]} 6... a6 {[%clk 0:02:57.5]}
7. Nf3 {[%clk 0:03:00.3]} 7... Bg4 {[%clk 0:02:56.5]} 8. Bd3 {[%clk 0:02:56.1]}
8... Bxf3 {[%clk 0:02:54.8]} 9. Qxf3 {[%clk 0:02:51.7]} 9... e6 {[%clk
0:02:55.3]} 10. O-O {[%clk 0:02:50.9]} 10... Bd6 {[%clk 0:02:47.3]} 11. Rfc1
{[%clk 0:02:50]} 11... O-O {[%clk 0:02:47.1]} 12. Bg5 {[%clk 0:02:47.6]} 12...
h6 {[%clk 0:02:38.8]} 13. Bh4 {[%clk 0:02:44.7]} 13... Rc8 {[%clk 0:02:38.6]}
14. Na4 {[%clk 0:02:37.8]} 14... Qe7 {[%clk 0:02:27.3]} 15. Nb6 {[%clk
0:02:20.1]} 15... Rc7 {[%clk 0:02:26.1]} 16. Rc3 {[%clk 0:02:12.3]} 16... Bb4
{[%clk 0:02:04.8]} 17. Rc2 {[%clk 0:02:04.9]} 17... Ba5 {[%clk 0:02:01.5]} 18.
Na4 {[%clk 0:01:59.2]} 18... Nb4 {[%clk 0:01:59.6]} 19. Rxc7 {[%clk 0:01:55.7]}
19... Bxc7 {[%clk 0:02:00.5]} 20. Bf1 {[%clk 0:01:26.2]} 20... e5 {[%clk
0:01:24.6]} 21. Bxf6 {[%clk 0:01:15.7]} 21... Qxf6 {[%clk 0:01:22.3]} 22. Qxf6
{[%clk 0:01:15.6]} 22... gxf6 {[%clk 0:01:23.2]} 23. Nc5 {[%clk 0:01:16.1]}
23... exd4 {[%clk 0:01:16.1]} 24. exd4 {[%clk 0:01:14.5]} 24... Rb8 {[%clk
0:00:57.4]} 25. Nd7 {[%clk 0:00:51.4]} 25... Rd8 {[%clk 0:00:53.9]} 26. Nxf6+
{[%clk 0:00:51.5]} 26... Kg7 {[%clk 0:00:54.4]} 27. Nh5+ {[%clk 0:00:40.1]}
27... Kg6 {[%clk 0:00:54.1]} 28. Ng3 {[%clk 0:00:40.3]} 28... Bb6 {[%clk
0:00:38.6]} 29. Ne2 {[%clk 0:00:37.6]} 29... Kg7 {[%clk 0:00:18.4]} 30. a3
{[%clk 0:00:34.6]} 30... Nc6 {[%clk 0:00:11.2]} 31. Rd1 {[%clk 0:00:35.2]} 31...
Re8 {[%clk 0:00:11.4]} 32. Rd3 {[%clk 0:00:22.3]} 32... Re4 {[%clk 0:00:09.1]}
33. f3 {[%clk 0:00:22.6]} 33... Re6 {[%clk 0:00:06.5]} 34. Kf2 {[%clk
0:00:20.5]} 34... Ne5 {[%clk 0:00:04.3]} 35. Rb3 {[%clk 0:00:16.3]} 35... Nc4
{[%clk 0:00:04.2]} 36. g3 {[%clk 0:00:15.8]} 36... a5 {[%clk 0:00:03.2]} 37. Bh3
{[%clk 0:00:15.5]} 37... Rc6 {[%clk 0:00:02.8]} 38. Bd7 {[%clk 0:00:15.2]} 38...
Rc7 {[%clk 0:00:02.8]} 39. Bb5 {[%clk 0:00:11.6]} 39... Ba7 {[%clk 0:00:03.5]}
40. Rc3 {[%clk 0:00:10.7]} 40... Re7 {[%clk 0:00:02.7]} 41. Rc2 {[%clk
0:00:08.8]} 41... Nd6 {[%clk 0:00:02.4]} 42. Bd3 {[%clk 0:00:08.5]} 42... Re6
{[%clk 0:00:02.1]} 43. f4 {[%clk 0:00:07.8]} 43... Ne4+ {[%clk 0:00:01.9]} 44.
Kf3 {[%clk 0:00:08]} 44... Nd6 {[%clk 0:00:01.8]} 45. f5 {[%clk 0:00:07.8]}
45... Re7 {[%clk 0:00:01.7]} 46. g4 {[%clk 0:00:07.9]} 46... Kf6 {[%clk
0:00:02]} 47. Nf4 {[%clk 0:00:08.1]} 47... Kg7 {[%clk 0:00:01.4]} 48. f6+ {[%clk
0:00:07.8]} 48... Kxf6 {[%clk 0:00:01.4]} 49. Nxd5+ {[%clk 0:00:08.5]} 49... Ke6
{[%clk 0:00:02.3]} 50. Nxe7 {[%clk 0:00:09.1]} 50... Kxe7 {[%clk 0:00:03.2]} 51.
d5 {[%clk 0:00:09.4]} 51... Bd4 {[%clk 0:00:03.1]} 52. Re2+ {[%clk 0:00:09.9]}
52... Kf6 {[%clk 0:00:03.1]} 53. b4 {[%clk 0:00:10.8]} 53... axb4 {[%clk
0:00:03.2]} 54. axb4 {[%clk 0:00:11.7]} 54... b6 {[%clk 0:00:03.7]} 55. h4
{[%clk 0:00:12]} 55... Bc3 {[%clk 0:00:02.7]} 56. Kf4 {[%clk 0:00:11.7]} 56...
Bxb4 {[%clk 0:00:02.9]} 57. g5+ {[%clk 0:00:11.8]} 57... hxg5+ {[%clk
0:00:03.8]} 58. hxg5+ {[%clk 0:00:12.5]} 58... Kg7 {[%clk 0:00:04.7]} 59. Re7
{[%clk 0:00:11.6]} 59... Bc5 {[%clk 0:00:04.5]} 60. Rd7 {[%clk 0:00:09.7]} 60...
Kf8 {[%clk 0:00:04.3]} 61. Ke5 {[%clk 0:00:09]} 61... Ne8 {[%clk 0:00:03.8]} 62.
d6 {[%clk 0:00:06.5]} 62... Kg7 {[%clk 0:00:02.6]} 63. g6 {[%clk 0:00:04.8]} 1-0

[Event "Early-Titled-Tuesday-Blitz-November-28-2023"]
[Site "Chess.com"]
[Date "2023.11.28"]
[Round "3"]
[White "AccioChess"]
[Black "SchmakAttack"]
[Result "0-1"]
[WhiteElo "2463"]
[BlackElo "2756"]
[TimeControl "180+1"]
[EndTime "8:30:14 PST"]
[Termination "SchmakAttack won on time"]

1. d4 {[%clk 0:02:45.1]} 1... d5 {[%clk 0:02:59.7]} 2. Nf3 {[%clk 0:02:43.2]}
2... e6 {[%clk 0:02:59.2]} 3. Bf4 {[%clk 0:02:43]} 3... c5 {[%clk 0:02:53.2]} 4.
e3 {[%clk 0:02:42.6]} 4... Nf6 {[%clk 0:02:50.1]} 5. h3 {[%clk 0:02:40.2]} 5...
Qb6 {[%clk 0:02:43.3]} 6. Qc1 {[%clk 0:02:38.6]} 6... Bd6 {[%clk 0:02:23.1]} 7.
Bxd6 {[%clk 0:02:36.3]} 7... Qxd6 {[%clk 0:02:24]} 8. c3 {[%clk 0:02:36.4]} 8...
O-O {[%clk 0:02:23.1]} 9. Nbd2 {[%clk 0:02:35.6]} 9... Nbd7 {[%clk 0:02:22.7]}
10. Bd3 {[%clk 0:02:35.4]} 10... e5 {[%clk 0:02:17.4]} 11. dxe5 {[%clk
0:02:36.3]} 11... Nxe5 {[%clk 0:02:18]} 12. Nxe5 {[%clk 0:02:36.2]} 12... Qxe5
{[%clk 0:02:18.9]} 13. O-O {[%clk 0:02:31.2]} 13... b6 {[%clk 0:02:15.9]} 14.
Qc2 {[%clk 0:02:26]} 14... Bb7 {[%clk 0:02:15.2]} 15. Rad1 {[%clk 0:02:21.4]}
15... Rfd8 {[%clk 0:02:03.1]} 16. Rfe1 {[%clk 0:02:19.4]} 16... Rac8 {[%clk
0:01:30.8]} 17. Qa4 {[%clk 0:02:11.3]} 17... a6 {[%clk 0:01:29.1]} 18. Nf3
{[%clk 0:02:03.4]} 18... Qe7 {[%clk 0:01:26.9]} 19. Qf4 {[%clk 0:02:01.9]} 19...
b5 {[%clk 0:01:23.6]} 20. Bb1 {[%clk 0:01:58.9]} 20... h6 {[%clk 0:01:22.1]} 21.
Rd2 {[%clk 0:01:56.7]} 21... Ne4 {[%clk 0:01:07.5]} 22. Rdd1 {[%clk 0:01:39.1]}
22... a5 {[%clk 0:00:52.7]} 23. Bxe4 {[%clk 0:01:28]} 23... dxe4 {[%clk
0:00:52.5]} 24. Qe5 {[%clk 0:01:27.4]} 24... Kf8 {[%clk 0:00:43.5]} 25. Qxe7+
{[%clk 0:01:12.8]} 25... Kxe7 {[%clk 0:00:44.4]} 26. Nh2 {[%clk 0:01:01.1]}
26... Rd3 {[%clk 0:00:37.7]} 27. Rxd3 {[%clk 0:00:44.6]} 27... exd3 {[%clk
0:00:38.6]} 28. Nf1 {[%clk 0:00:43.9]} 28... c4 {[%clk 0:00:34.9]} 29. Nd2
{[%clk 0:00:43]} 29... b4 {[%clk 0:00:34.7]} 30. Rc1 {[%clk 0:00:39.9]} 30...
Bd5 {[%clk 0:00:34.8]} 31. e4 {[%clk 0:00:34.2]} 31... Be6 {[%clk 0:00:34.9]}
32. f4 {[%clk 0:00:33.4]} 32... f6 {[%clk 0:00:35.4]} 33. Kf2 {[%clk 0:00:31.3]}
33... g5 {[%clk 0:00:35.1]} 34. f5 {[%clk 0:00:28.6]} 34... Bf7 {[%clk
0:00:34.8]} 35. Ke3 {[%clk 0:00:28.4]} 35... h5 {[%clk 0:00:12]} 36. Kd4 {[%clk
0:00:19.2]} 36... Rd8+ {[%clk 0:00:12]} 37. Kc5 {[%clk 0:00:19]} 37... h4 {[%clk
0:00:08.4]} 38. cxb4 {[%clk 0:00:17.4]} 38... axb4 {[%clk 0:00:08.4]} 39. Kxb4
{[%clk 0:00:17.4]} 39... Rb8+ {[%clk 0:00:08.3]} 40. Kc3 {[%clk 0:00:17.4]}
40... Kd6 {[%clk 0:00:09]} 41. Re1 {[%clk 0:00:09.3]} 41... Ke5 {[%clk
0:00:06.4]} 42. Rf1 {[%clk 0:00:08.7]} 42... Ra8 {[%clk 0:00:03.2]} 43. a3
{[%clk 0:00:07.8]} 43... Rb8 {[%clk 0:00:03.6]} 44. Rf2 {[%clk 0:00:07.2]} 44...
Rb7 {[%clk 0:00:03.4]} 45. Rf1 {[%clk 0:00:07.4]} 45... Rc7 {[%clk 0:00:03.3]}
46. Rf2 {[%clk 0:00:06.7]} 46... Bh5 {[%clk 0:00:03.6]} 47. Rf1 {[%clk
0:00:04.6]} 47... Be2 {[%clk 0:00:02.9]} 48. Rc1 {[%clk 0:00:03.3]} 48... Kf4
{[%clk 0:00:02.8]} 49. Re1 {[%clk 0:00:01.3]} 49... Kg3 {[%clk 0:00:03.1]} 50.
Nxc4 {[%clk 0:00:01.2]} 50... Rxc4+ {[%clk 0:00:02.6]} 51. Kxc4 {[%clk
0:00:01.6]} 51... d2+ {[%clk 0:00:03.1]} 52. Rxe2 {[%clk 0:00:02.1]} 52... d1=Q
{[%clk 0:00:03.3]} 53. Re3+ {[%clk 0:00:02]} 53... Kxg2 {[%clk 0:00:03.4]} 0-1

[Event "Early-Titled-Tuesday-Blitz-November-28-2023"]
[Site "Chess.com"]
[Date "2023.11.28"]
[Round "3"]
[White "MokshAD1603"]
[Black "OhanyanEminChess"]
[Result "1/2-1/2"]
[WhiteElo "2661"]
[BlackElo "2854"]
[TimeControl "180+1"]
[EndTime "8:30:19 PST"]
[Termination "Game drawn by stalemate"]

1. d4 {[%clk 0:02:58.1]} 1... d5 {[%clk 0:02:59.2]} 2. c4 {[%clk 0:02:51.1]}
2... c6 {[%clk 0:02:59.1]} 3. Nf3 {[%clk 0:02:49.6]} 3... Nf6 {[%clk 0:02:59.1]}
4. Nc3 {[%clk 0:02:49.5]} 4... e6 {[%clk 0:02:55.3]} 5. g3 {[%clk 0:02:49.7]}
5... dxc4 {[%clk 0:02:51.7]} 6. Bg2 {[%clk 0:02:49.5]} 6... b5 {[%clk
0:02:52.4]} 7. O-O {[%clk 0:02:48.4]} 7... Bb7 {[%clk 0:02:35.5]} 8. e4 {[%clk
0:02:47.6]} 8... b4 {[%clk 0:02:25.3]} 9. e5 {[%clk 0:02:35.2]} 9... Nfd7 {[%clk
0:02:05.1]} 10. Ne4 {[%clk 0:02:29.6]} 10... h6 {[%clk 0:01:51.2]} 11. Nfd2
{[%clk 0:02:20.5]} 11... Nb6 {[%clk 0:01:45.7]} 12. Nc5 {[%clk 0:02:14.9]} 12...
Qc7 {[%clk 0:01:32.4]} 13. Qc2 {[%clk 0:02:06]} 13... N8d7 {[%clk 0:01:31.3]}
14. Nxb7 {[%clk 0:02:05.5]} 14... Qxb7 {[%clk 0:01:31.4]} 15. Nxc4 {[%clk
0:02:06.4]} 15... Nxc4 {[%clk 0:01:31.2]} 16. Qxc4 {[%clk 0:02:07.3]} 16... Rc8
{[%clk 0:01:31.9]} 17. Bd2 {[%clk 0:02:06.7]} 17... Nb6 {[%clk 0:01:30.2]} 18.
Qc2 {[%clk 0:01:49.4]} 18... Be7 {[%clk 0:01:23.8]} 19. Rac1 {[%clk 0:01:49]}
19... O-O {[%clk 0:01:20.6]} 20. Bxc6 {[%clk 0:01:47.9]} 20... Qa6 {[%clk
0:01:18.1]} 21. Qb3 {[%clk 0:01:46.5]} 21... Rfd8 {[%clk 0:01:10]} 22. Bxb4
{[%clk 0:01:42.4]} 22... Bxb4 {[%clk 0:01:03.3]} 23. Qxb4 {[%clk 0:01:43.3]}
23... Qxa2 {[%clk 0:01:03.6]} 24. Be4 {[%clk 0:01:38.6]} 24... g6 {[%clk
0:00:48.2]} 25. Qe7 {[%clk 0:01:21.3]} 25... Qxb2 {[%clk 0:00:39.7]} 26. Rxc8
{[%clk 0:01:16.5]} 26... Rxc8 {[%clk 0:00:40.5]} 27. Bxg6 {[%clk 0:01:09.5]}
27... Rf8 {[%clk 0:00:36.7]} 28. Bh7+ {[%clk 0:01:04.6]} 28... Kg7 {[%clk
0:00:35.6]} 29. Bb1 {[%clk 0:01:04.8]} 29... Nd5 {[%clk 0:00:27.2]} 30. Qh4
{[%clk 0:01:05.4]} 30... a5 {[%clk 0:00:23.6]} 31. Qg4+ {[%clk 0:01:02.5]} 31...
Kh8 {[%clk 0:00:23.8]} 32. Qe4 {[%clk 0:01:03.4]} 32... f5 {[%clk 0:00:23.4]}
33. exf6 {[%clk 0:01:03.9]} 33... Nxf6 {[%clk 0:00:23.9]} 34. Qg6 {[%clk
0:01:00.3]} 34... Qxd4 {[%clk 0:00:21.4]} 35. Qxh6+ {[%clk 0:01:00.2]} 35... Kg8
{[%clk 0:00:22.1]} 36. Rc1 {[%clk 0:00:52.6]} 36... Qxf2+ {[%clk 0:00:18.7]} 37.
Kxf2 {[%clk 0:00:46.8]} 37... Ng4+ {[%clk 0:00:18.9]} 38. Kg2 {[%clk 0:00:47.7]}
38... Nxh6 {[%clk 0:00:19.8]} 39. Rc6 {[%clk 0:00:47.1]} 39... Kf7 {[%clk
0:00:02.2]} 40. Ra6 {[%clk 0:00:46.1]} 40... Rb8 {[%clk 0:00:02.3]} 41. Be4
{[%clk 0:00:42]} 41... Rb4 {[%clk 0:00:02.4]} 42. Bc6 {[%clk 0:00:39.3]} 42...
Nf5 {[%clk 0:00:01.8]} 43. Rxa5 {[%clk 0:00:38.8]} 43... Rc4 {[%clk 0:00:02.3]}
44. Bf3 {[%clk 0:00:38.3]} 44... Rc2+ {[%clk 0:00:01.9]} 45. Kh3 {[%clk
0:00:38.6]} 45... Ne3 {[%clk 0:00:02.1]} 46. Re5 {[%clk 0:00:36.2]} 46... Nf1
{[%clk 0:00:02.5]} 47. Bg2 {[%clk 0:00:36.3]} 47... Nd2 {[%clk 0:00:03]} 48. Re2
{[%clk 0:00:36.1]} 48... Rb2 {[%clk 0:00:03.5]} 49. g4 {[%clk 0:00:33.3]} 49...
Kf6 {[%clk 0:00:03.5]} 50. Kh4 {[%clk 0:00:33.7]} 50... Nc4 {[%clk 0:00:02.9]}
51. Rxb2 {[%clk 0:00:33.7]} 51... Nxb2 {[%clk 0:00:03.8]} 52. g5+ {[%clk
0:00:33.6]} 52... Kg7 {[%clk 0:00:04.4]} 53. Kg4 {[%clk 0:00:33.5]} 53... Nc4
{[%clk 0:00:03.5]} 54. h4 {[%clk 0:00:33.9]} 54... Ne3+ {[%clk 0:00:03.8]} 55.
Kf3 {[%clk 0:00:34.6]} 55... Nf5 {[%clk 0:00:04.4]} 56. Kg4 {[%clk 0:00:32.5]}
56... Ne3+ {[%clk 0:00:04.2]} 57. Kh3 {[%clk 0:00:32.9]} 57... Nf5 {[%clk
0:00:04.1]} 58. Be4 {[%clk 0:00:33.2]} 58... Nd6 {[%clk 0:00:03]} 59. Bd3 {[%clk
0:00:33.1]} 59... Nf7 {[%clk 0:00:03.4]} 60. Kg4 {[%clk 0:00:33]} 60... Nh6+
{[%clk 0:00:02.5]} 61. Kf4 {[%clk 0:00:32.1]} 61... Nf7 {[%clk 0:00:03]} 62. h5
{[%clk 0:00:30.3]} 62... Nxg5 {[%clk 0:00:03.1]} 63. Kxg5 {[%clk 0:00:28.3]}
63... e5 {[%clk 0:00:04]} 64. Be4 {[%clk 0:00:27.8]} 64... Kh8 {[%clk 0:00:04]}
65. Kf6 {[%clk 0:00:28.2]} 65... Kg8 {[%clk 0:00:04.9]} 66. Kg6 {[%clk
0:00:28.3]} 66... Kh8 {[%clk 0:00:05.8]} 67. Kh6 {[%clk 0:00:29.1]} 67... Kg8
{[%clk 0:00:06.7]} 68. Kg6 {[%clk 0:00:29.5]} 68... Kh8 {[%clk 0:00:07.6]} 69.
Kf6 {[%clk 0:00:30.4]} 69... Kg8 {[%clk 0:00:08.5]} 70. Kxe5 {[%clk 0:00:31.3]}
70... Kh8 {[%clk 0:00:09.4]} 71. Kf5 {[%clk 0:00:32.2]} 71... Kg8 {[%clk
0:00:10.3]} 72. Kg5 {[%clk 0:00:32.9]} 72... Kh8 {[%clk 0:00:11.2]} 73. Kg6
{[%clk 0:00:33.8]} 73... Kg8 {[%clk 0:00:12.1]} 74. Kh6 {[%clk 0:00:34.6]} 74...
Kh8 {[%clk 0:00:13]} 75. Kg6 {[%clk 0:00:34.8]} 75... Kg8 {[%clk 0:00:13.9]} 76.
h6 {[%clk 0:00:35.5]} 76... Kh8 {[%clk 0:00:14.8]} 77. h7 {[%clk 0:00:36.3]}
1/2-1/2

[Event "Early-Titled-Tuesday-Blitz-November-28-2023"]
[Site "Chess.com"]
[Date "2023.11.28"]
[Round "3"]
[White "Actuary44"]
[Black "GeorgiosSouleidis"]
[Result "0-1"]
[WhiteElo "2452"]
[BlackElo "2624"]
[TimeControl "180+1"]
[EndTime "8:30:22 PST"]
[Termination "GeorgiosSouleidis won by resignation"]

1. e4 {[%clk 0:02:59.9]} 1... c5 {[%clk 0:02:58]} 2. d4 {[%clk 0:02:59.8]} 2...
cxd4 {[%clk 0:02:58.1]} 3. c3 {[%clk 0:03:00.5]} 3... d5 {[%clk 0:02:58.5]} 4.
exd5 {[%clk 0:03:00.3]} 4... Nf6 {[%clk 0:02:58.8]} 5. cxd4 {[%clk 0:03:01.2]}
5... Nxd5 {[%clk 0:02:59.1]} 6. Nf3 {[%clk 0:03:01.7]} 6... e6 {[%clk
0:02:59.5]} 7. Nc3 {[%clk 0:03:02.3]} 7... Nxc3 {[%clk 0:02:59.8]} 8. bxc3
{[%clk 0:03:01.4]} 8... Qc7 {[%clk 0:03:00.2]} 9. Bd2 {[%clk 0:02:57.4]} 9...
Bd6 {[%clk 0:03:00.1]} 10. Bd3 {[%clk 0:02:57.6]} 10... Nd7 {[%clk 0:02:59.8]}
11. O-O {[%clk 0:02:57.4]} 11... Nf6 {[%clk 0:03:00.2]} 12. Bg5 {[%clk
0:02:53.5]} 12... Be7 {[%clk 0:02:56.4]} 13. Qd2 {[%clk 0:02:44.2]} 13... h6
{[%clk 0:02:54.9]} 14. Bh4 {[%clk 0:02:25.4]} 14... b6 {[%clk 0:02:53.1]} 15.
Bb5+ {[%clk 0:02:13.7]} 15... Bd7 {[%clk 0:02:51.8]} 16. Bxd7+ {[%clk
0:02:08.1]} 16... Qxd7 {[%clk 0:02:52.4]} 17. Ne5 {[%clk 0:02:06.9]} 17... Qc7
{[%clk 0:02:51.8]} 18. Rfe1 {[%clk 0:01:56.9]} 18... O-O {[%clk 0:02:51.7]} 19.
Re3 {[%clk 0:01:38.2]} 19... Rfd8 {[%clk 0:01:41.9]} 20. Qe2 {[%clk 0:01:27.4]}
20... Rac8 {[%clk 0:01:30.5]} 21. Qf3 {[%clk 0:01:25.7]} 21... Rf8 {[%clk
0:01:20.2]} 22. Rd3 {[%clk 0:01:20.6]} 22... Nd5 {[%clk 0:01:17.2]} 23. Bg3
{[%clk 0:01:08.5]} 23... Bd6 {[%clk 0:01:16.3]} 24. Rc1 {[%clk 0:00:41.8]} 24...
Ne7 {[%clk 0:01:11.8]} 25. h3 {[%clk 0:00:32.1]} 25... Nf5 {[%clk 0:01:10.9]}
26. Bh2 {[%clk 0:00:30.1]} 26... Nh4 {[%clk 0:00:44.2]} 27. Qh5 {[%clk
0:00:28.5]} 27... Ng6 {[%clk 0:00:37.7]} 28. Re3 {[%clk 0:00:11.6]} 28... Bxe5
{[%clk 0:00:36.3]} 29. Bxe5 {[%clk 0:00:11]} 29... Nxe5 {[%clk 0:00:36.6]} 30.
Rxe5 {[%clk 0:00:11.9]} 30... Qc4 {[%clk 0:00:29.9]} 31. Re3 {[%clk 0:00:11.7]}
31... Qxa2 {[%clk 0:00:22.5]} 32. Rg3 {[%clk 0:00:11.8]} 32... Qd2 {[%clk
0:00:19.6]} 33. Rd1 {[%clk 0:00:10.4]} 33... Qf4 {[%clk 0:00:19.7]} 34. Rg4
{[%clk 0:00:09.8]} 34... Qf6 {[%clk 0:00:20.1]} 35. Rd3 {[%clk 0:00:09.1]} 35...
g5 {[%clk 0:00:09.5]} 36. Rdg3 {[%clk 0:00:03]} 36... Qg6 {[%clk 0:00:07.2]} 37.
Rxg5 {[%clk 0:00:03.3]} 37... hxg5 {[%clk 0:00:07]} 38. Rxg5 {[%clk 0:00:04.2]}
38... Kg7 {[%clk 0:00:06.7]} 39. Rxg6+ {[%clk 0:00:04.1]} 39... fxg6 {[%clk
0:00:07.6]} 40. Qe5+ {[%clk 0:00:04.5]} 40... Rf6 {[%clk 0:00:04.4]} 41. g4
{[%clk 0:00:04.9]} 41... Kf7 {[%clk 0:00:04.8]} 42. g5 {[%clk 0:00:05.4]} 42...
Rf5 {[%clk 0:00:04.7]} 43. Qd6 {[%clk 0:00:05.5]} 43... Rxg5+ {[%clk 0:00:05.1]}
44. Kf1 {[%clk 0:00:05.3]} 44... Re8 {[%clk 0:00:05.2]} 45. Qd7+ {[%clk
0:00:04.5]} 45... Re7 {[%clk 0:00:05.2]} 46. Qd6 {[%clk 0:00:05.4]} 46... Rd5
{[%clk 0:00:05.3]} 47. Qc6 {[%clk 0:00:05.1]} 47... Red7 {[%clk 0:00:03.5]} 48.
Ke2 {[%clk 0:00:04.7]} 48... Re7 {[%clk 0:00:04]} 49. f3 {[%clk 0:00:04.1]}
49... Rf5 {[%clk 0:00:04.6]} 50. Ke3 {[%clk 0:00:04.1]} 50... Kg7 {[%clk
0:00:05.2]} 51. f4 {[%clk 0:00:04.5]} 51... Ref7 {[%clk 0:00:05.4]} 52. Qxe6
{[%clk 0:00:03.4]} 52... Rxf4 {[%clk 0:00:05.8]} 53. Qe5+ {[%clk 0:00:04]} 53...
Kh7 {[%clk 0:00:06.4]} 54. Qe6 {[%clk 0:00:03.5]} 54... Rf3+ {[%clk 0:00:06.5]}
55. Kd2 {[%clk 0:00:04.1]} 55... R3f6 {[%clk 0:00:07.2]} 56. Qe5 {[%clk
0:00:04]} 56... Kg7 {[%clk 0:00:08.1]} 57. h4 {[%clk 0:00:03.8]} 57... Kg8
{[%clk 0:00:08.6]} 58. h5 {[%clk 0:00:04.3]} 58... gxh5 {[%clk 0:00:08.9]} 59.
Qxh5 {[%clk 0:00:04.4]} 59... Rf5 {[%clk 0:00:08.5]} 60. Qg4+ {[%clk 0:00:04.2]}
60... Kf8 {[%clk 0:00:08.5]} 61. Kd3 {[%clk 0:00:04.7]} 61... b5 {[%clk
0:00:07.7]} 62. Ke4 {[%clk 0:00:03.7]} 62... Rf4+ {[%clk 0:00:05]} 63. Qxf4
{[%clk 0:00:03.6]} 63... Rxf4+ {[%clk 0:00:05.9]} 64. Kxf4 {[%clk 0:00:04.3]}
64... a5 {[%clk 0:00:06.8]} 65. Ke5 {[%clk 0:00:03.5]} 65... a4 {[%clk
0:00:07.6]} 66. Kd6 {[%clk 0:00:03.7]} 66... a3 {[%clk 0:00:07.5]} 67. Kc7
{[%clk 0:00:03.7]} 67... a2 {[%clk 0:00:08.4]} 68. d5 {[%clk 0:00:04.4]} 68...
a1=Q {[%clk 0:00:09.3]} 69. d6 {[%clk 0:00:05.2]} 69... Qxc3+ {[%clk 0:00:08.6]}
70. Kb6 {[%clk 0:00:06.1]} 70... b4 {[%clk 0:00:07.9]} 71. d7 {[%clk 0:00:05.6]}
71... Qd4+ {[%clk 0:00:08.3]} 0-1